bitfinex-derivatives/quotes_BTCF0:USTF0_20250320
["timestamp","ask_amount","ask_price","bid_price","bid_amount"]
[1742479455756,0.1163733,85963.0,85946.0,0.3608]
[1742479455757,0.1163936,85948.0,85947.0,0.1041]
[1742479456253,0.116399,85944.0,85943.0,0.1163995]
[1742479457046,0.0581988,85946.0,85945.0,0.1163976]
[1742479457646,0.00017452,85952.0,85951.0,0.1163895]
[1742479457647,0.17475882,85952.0,85951.0,0.1163895]
[1742479457947,0.11656272,85952.0,85951.0,0.4771895]
[1742479458456,0.11656272,85952.0,85951.0,0.6856895]
[1742479458756,0.00017452,85952.0,85951.0,0.6856895]
[1742479459442,0.1163776,85965.0,85964.0,0.2327307]
[1742479459644,0.1019,85971.0,85969.0,0.1163652]
[1742479459854,0.1019,85971.0,85970.0,0.6797638]
[1742479460150,0.2182624,85971.0,85970.0,0.6797638]
[1742479460352,0.2182624,85971.0,85970.0,0.3189638]
[1742479461454,0.2202624,85971.0,85970.0,0.2166638]
[1742479462150,0.3235624,85971.0,85970.0,0.2166638]
[1742479462547,0.3235624,85971.0,85970.0,0.1003]
[1742479462751,0.0581853,85965.0,85964.0,0.2152719]
[1742479462948,0.0581853,85965.0,85964.0,0.3157719]
[1742479463150,0.2683853,85965.0,85964.0,0.3157719]
[1742479464153,0.1765463,85971.0,85965.0,0.0581852]
[1742479464353,0.1089,85971.0,85970.0,0.1163638]
[1742479464756,0.1089,85971.0,85970.0,0.3230638]
[1742479464961,0.1069,85971.0,85970.0,0.3230638]
[1742479465363,0.13912277,85972.0,85971.0,0.1163624]
[1742479465562,0.25548387,85972.0,85971.0,0.3264624]
[1742479465754,0.1163624,85971.0,85967.0,0.3608]
[1742479465958,0.1163665,85968.0,85967.0,0.1163658]
[1742479466261,0.1745552,85966.0,85965.0,0.1163693]
[1742479466455,0.1745552,85966.0,85965.0,0.1062]
[1742479466856,0.1163733,85963.0,85962.0,0.11654912]
[1742479467255,0.1163717,85965.0,85964.0,0.1745565]
[1742479467857,0.1163717,85965.0,85964.0,0.2784565]
[1742479468561,0.1163717,85965.0,85964.0,0.1620859]
[1742479468759,0.1163719,85964.0,85963.0,0.1392]
[1742479468964,0.1163719,85964.0,85962.0,0.00017452]
[1742479468965,0.1163733,85963.0,85962.0,0.00017452]
[1742479469155,0.3185733,85963.0,85962.0,0.00017452]
[1742479469357,0.1163733,85963.0,85962.0,0.00017452]
[1742479469556,0.3201733,85963.0,85962.0,0.00017452]
[1742479469759,0.1163909,85950.0,85946.0,0.20526542]
[1742479469959,0.1163909,85950.0,85949.0,0.4771922]
[1742479470254,0.3201909,85950.0,85949.0,0.3608]
[1742479470458,0.3201909,85950.0,85949.0,0.4771922]
[1742479470658,0.3201909,85950.0,85949.0,0.3608]
[1742479470959,0.3201909,85950.0,85944.0,0.058199]
[1742479470960,0.1164031,85941.0,85940.0,0.32166892]
[1742479471456,0.1164031,85941.0,85940.0,0.42926892]
[1742479471656,0.07711524,86196.0,85953.0,0.1163868]
[1742479471657,0.4189955,85954.0,85953.0,0.1163868]
[1742479471862,0.1163882,85952.0,85951.0,0.0581941]
[1742479472257,0.1163882,85952.0,85951.0,0.4189941]
[1742479472456,0.3187882,85952.0,85951.0,0.0581941]
[1742479472660,0.1164031,85941.0,85940.0,0.20726542]
[1742479472859,0.1164031,85941.0,85940.0,0.32366982]
[1742479473165,0.00064,85952.0,85946.0,0.0581978]
[1742479473374,0.0581893,85960.0,85953.0,0.1163855]
[1742479473375,0.0581927,85954.0,85953.0,0.1163855]
[1742479473558,0.1745795,85954.0,85953.0,0.1163855]
[1742479474068,0.1745795,85954.0,85953.0,0.2239855]
[1742479474367,0.3398729,85954.0,85953.0,0.2239855]
[1742479474963,0.2327729,85954.0,85953.0,0.2239855]
[1742479475557,0.2327729,85954.0,85949.0,0.058196]
[1742479475558,0.1592927,85954.0,85949.0,0.058196]
[1742479475766,0.1163949,85947.0,85940.0,0.13788]
[1742479475976,0.1746053,85941.0,85940.0,0.116402]
[1742479476973,0.1746053,85941.0,85940.0,0.2328051]
[1742479477376,0.1164139,85933.0,85929.0,0.116418]
[1742479477679,0.1164139,85933.0,85928.0,0.105]
[1742479477870,0.2164139,85933.0,85921.0,0.215829]
[1742479478174,0.2175139,85933.0,85926.0,0.1164227]
[1742479478373,0.2155139,85933.0,85927.0,0.2180207]
[1742479478567,0.2155139,85933.0,85928.0,0.1164196]
[1742479478767,0.2155139,85933.0,85929.0,0.1164191]
[1742479478964,0.2155139,85933.0,85932.0,0.00417452]
[1742479479173,0.2155139,85933.0,85932.0,0.12058982]
[1742479479380,0.36148,85950.0,85947.0,0.0581968]
[1742479479576,0.2226922,85949.0,85948.0,0.2225922]
[1742479479782,0.1063,85949.0,85948.0,0.2225922]
[1742479479984,0.1063,85949.0,85948.0,0.3275922]
[1742479480285,4e-05,85952.0,85951.0,0.1163895]
[1742479480676,0.10004,85952.0,85945.0,0.4771956]
[1742479480871,0.0582033,85942.0,85941.0,0.1164017]
[1742479481881,0.1651033,85942.0,85941.0,0.3258017]
[1742479482378,0.1651033,85942.0,85941.0,0.2247017]
[1742479482582,0.1651033,85942.0,85941.0,0.001]
[1742479482786,0.1651033,85942.0,85941.0,0.1174031]
[1742479482974,0.1969033,85942.0,85941.0,0.001]
[1742479483175,0.5677,85942.0,85916.0,0.0582171]
[1742479483386,0.0582157,85921.0,85916.0,0.00096]
[1742479483590,0.0582157,85921.0,85905.0,0.3608]
[1742479483591,0.1164478,85908.0,85905.0,0.116451]
[1742479483884,0.1164478,85908.0,85897.0,0.39936494]
[1742479483885,0.2164478,85908.0,85897.0,0.34113404]
[1742479484185,0.1410478,85908.0,85902.0,0.1164548]
[1742479484387,0.1410478,85908.0,85900.0,0.1164578]
[1742479484688,0.1410478,85908.0,85907.0,0.2741161]
[1742479484689,0.2164478,85908.0,85907.0,0.2741161]
[1742479484989,0.1482478,85908.0,85907.0,0.2741161]
[1742479485187,0.2104478,85908.0,85907.0,0.2741161]
[1742479485774,0.2104478,85908.0,85907.0,0.2751161]
[1742479485980,0.1350478,85908.0,85907.0,0.2751161]
[1742479486276,0.1104478,85908.0,85907.0,0.2751161]
[1742479486778,0.2104478,85908.0,85907.0,0.2751161]
[1742479486980,0.1536478,85908.0,85907.0,0.2751161]
[1742479487183,0.1413478,85908.0,85907.0,0.3915652]
[1742479487485,0.2468078,85908.0,85907.0,0.3915652]
[1742479487787,0.2468078,85908.0,85907.0,0.001]
[1742479487973,0.2468078,85908.0,85907.0,0.2163491]
[1742479488478,0.1104478,85908.0,85907.0,0.2163491]
[1742479488786,0.1104478,85908.0,85907.0,0.001]
[1742479489184,0.1104478,85908.0,85907.0,0.1174491]
[1742479489778,0.1104478,85908.0,85907.0,0.001]
[1742479489985,0.2104478,85908.0,85907.0,0.001]
[1742479490192,0.1350478,85908.0,85907.0,0.001]
[1742479490384,0.1350478,85908.0,85907.0,0.1174491]
[1742479490581,0.2069478,85908.0,85907.0,0.001]
[1742479490890,0.2069478,85908.0,85907.0,0.1174491]
[1742479491087,0.2069478,85908.0,85907.0,0.001]
[1742479491491,0.2393478,85908.0,85907.0,0.001]
[1742479491690,0.2069478,85908.0,85907.0,0.001]
[1742479491991,0.3044478,85908.0,85907.0,0.001]
[1742479492591,0.4044478,85908.0,85907.0,0.001]
[1742479492795,0.3044478,85908.0,85907.0,0.001]
[1742479493182,0.3044478,85908.0,85907.0,0.1174491]
[1742479493382,0.3044478,85908.0,85907.0,0.001]
[1742479493583,0.3362478,85908.0,85907.0,0.001]
[1742479493883,0.3368478,85908.0,85907.0,0.001]
[1742479494290,0.3056478,85908.0,85907.0,0.001]
[1742479494497,0.34587074,85908.0,85907.0,0.001]
[1742479494694,0.31527074,85908.0,85907.0,0.001]
[1742479494989,0.31527074,85908.0,85899.0,0.00017452]
[1742479494990,0.1164586,85900.0,85899.0,0.00017452]
[1742479495190,0.62348154,85900.0,85899.0,0.00017452]
[1742479495394,0.67348154,85900.0,85899.0,0.00017452]
[1742479495584,0.67348154,85900.0,85889.0,0.1039]
[1742479495585,0.1164722,85890.0,85889.0,0.1039]
[1742479495781,0.1164776,85886.0,85885.0,0.1039]
[1742479495985,0.12610054,85886.0,85885.0,0.1039]
[1742479496189,0.12610054,85886.0,85885.0,0.220379]
[1742479496991,0.12310054,85886.0,85885.0,0.220379]
[1742479497183,0.00962294,85886.0,85885.0,0.230379]
[1742479497389,0.1164687,85893.0,85892.0,0.1164681]
[1742479497596,0.1164687,85893.0,85892.0,0.4772681]
[1742479497995,0.1164687,85893.0,85892.0,0.6812681]
[1742479498592,0.1164687,85893.0,85892.0,0.5648]
[1742479498792,0.3153687,85893.0,85892.0,0.3204695]
[1742479499700,0.3153687,85893.0,85892.0,0.0985]
[1742479500397,0.1747117,85889.0,85888.0,0.1164743]
[1742479500585,0.1747117,85889.0,85888.0,0.2173743]
[1742479501000,0.1747117,85889.0,85888.0,0.3235743]
[1742479501397,0.00021462,85894.0,85888.0,0.3235743]
[1742479501599,0.11668142,85894.0,85893.0,0.1164681]
[1742479501804,0.11664142,85894.0,85893.0,0.3196681]
[1742479502001,0.11664142,85894.0,85893.0,0.2032]
[1742479502206,0.31794142,85894.0,85893.0,0.1009]
[1742479502502,0.21864142,85894.0,85893.0,0.1009]
[1742479502702,0.21864142,85894.0,85893.0,0.2173681]
[1742479502903,0.11664142,85894.0,85893.0,0.2183681]
[1742479503105,0.11664142,85894.0,85893.0,0.3206681]
[1742479503302,0.21864142,85894.0,85893.0,0.3206681]
[1742479503801,0.21864142,85894.0,85893.0,0.001]
[1742479503802,0.24134142,85894.0,85893.0,0.001]
[1742479504007,0.21864142,85894.0,85893.0,0.001]
[1742479504203,0.32284142,85894.0,85893.0,0.001]
[1742479505095,0.32284142,85894.0,85893.0,0.1047]
[1742479505605,0.68364142,85894.0,85893.0,0.1047]
[1742479506696,0.78364142,85894.0,85893.0,0.001]
[1742479507794,0.70634142,85894.0,85893.0,0.001]
[1742479507991,0.58987462,85894.0,85884.0,0.0996]
[1742479508300,0.1164885,85878.0,85877.0,2e-08]
[1742479508606,0.6854685,85878.0,85877.0,2e-08]
[1742479508801,0.9716685,85878.0,85877.0,2e-08]
[1742479508995,1.0216685,85878.0,85877.0,2e-08]
[1742479509190,1.1216685,85878.0,85877.0,2e-08]
[1742479509392,1.1206685,85878.0,85877.0,2e-08]
[1742479509599,1.14233385,85878.0,85877.0,2e-08]
[1742479509900,1.29233385,85878.0,85877.0,2e-08]
[1742479510100,1.29233385,85878.0,85851.0,0.20581795]
[1742479510101,0.1165237,85852.0,85851.0,0.20581795]
[1742479510412,0.1165237,85852.0,85851.0,0.32234305]
[1742479510413,0.02585633,85852.0,85851.0,0.32234305]
[1742479510710,0.15204282,85852.0,85851.0,0.32234305]
[1742479511504,0.15204282,85852.0,85851.0,0.42654305]
[1742479511713,0.15204282,85852.0,85851.0,0.53084305]
[1742479511914,0.34924282,85852.0,85851.0,0.53084305]
[1742479512104,0.34966545,85852.0,85851.0,0.53084305]
[1742479512300,0.34966545,85852.0,85851.0,0.3250251]
[1742479512607,0.35166545,85852.0,85851.0,0.3250251]
[1742479513110,0.35166545,85852.0,85851.0,0.2207251]
[1742479513308,0.25116545,85852.0,85851.0,0.2207251]
[1742479513900,0.15446545,85852.0,85851.0,0.2207251]
[1742479514707,0.03794175,85852.0,85851.0,0.3552851]
[1742479514909,0.11668752,85860.0,85859.0,0.1165142]
[1742479515103,0.00017462,85860.0,85859.0,0.2510742]
[1742479515405,0.4701,85872.0,85859.0,0.2510742]
[1742479515406,0.1165079,85868.0,85867.0,0.1164979]
[1742479515607,0.0582472,85874.0,85870.0,0.0582493]
[1742479515907,0.13910642,85878.0,85877.0,0.1164898]
[1742479516210,0.0582308,85898.0,85881.0,0.1164844]
[1742479516211,0.20890472,85882.0,85881.0,0.1164844]
[1742479516415,0.1164898,85877.0,85876.0,0.106]
[1742479516605,0.1747353,85877.0,85876.0,0.2507676]
[1742479516800,0.1164993,85870.0,85869.0,0.00017462]
[1742479517010,0.2164993,85870.0,85869.0,0.00017462]
[1742479517311,0.1,85861.0,85849.0,0.0582613]
[1742479517510,0.1748052,85844.0,85843.0,0.2507294]
[1742479517911,0.1748052,85844.0,85843.0,0.1165294]
[1742479518110,0.1748052,85844.0,85843.0,0.2507294]
[1742479518303,0.1747921,85852.0,85851.0,0.1165237]
[1742479518609,0.17496684,85852.0,85851.0,0.1165237]
[1742479519010,0.1165265,85850.0,85849.0,0.0582632]
[1742479519214,0.1747971,85848.0,85847.0,0.2506901]
[1742479519910,0.1747971,85848.0,85847.0,0.13416]
[1742479520107,0.1747971,85848.0,85847.0,0.2506905]
[1742479520305,0.1747971,85848.0,85847.0,0.1165305]
[1742479520511,0.0582652,85847.0,85843.0,0.134]
[1742479520706,0.0582652,85847.0,85843.0,0.1165348]
[1742479520707,0.1165346,85844.0,85843.0,0.1165348]
[1742479520906,0.1165346,85844.0,85841.0,0.13388]
[1742479520907,0.1165373,85842.0,85841.0,0.13388]
[1742479521106,0.1165414,85839.0,85838.0,0.4773427]
[1742479521804,0.002,85848.0,85847.0,0.1165305]
[1742479522004,0.1185292,85848.0,85847.0,0.1165305]
[1742479522313,0.1165292,85848.0,85847.0,0.1165305]
[1742479522517,0.1165277,85850.0,85849.0,0.1165265]
[1742479522707,0.1748033,85845.0,85844.0,0.0582669]
[1742479523016,0.2078,85850.0,85838.0,0.1195427]
[1742479523017,0.1165414,85839.0,85838.0,0.1195427]
[1742479523823,0.2256414,85839.0,85838.0,0.1195427]
[1742479524319,0.2256414,85839.0,85838.0,0.003]
[1742479524706,0.2256414,85839.0,85838.0,0.1165427]
[1742479524912,0.1165427,85838.0,85837.0,0.1165429]
[1742479525121,0.1165455,85836.0,85835.0,0.11672154]
[1742479525421,0.2256455,85837.0,85836.0,0.1165455]
[1742479525808,4e-05,85837.0,85836.0,0.3665705]
[1742479526313,0.1165841,85837.0,85836.0,0.116545]
[1742479526817,0.1165441,85837.0,85836.0,0.116545]
[1742479527123,0.1165829,85838.0,85837.0,0.1165441]
[1742479527819,0.1165455,85836.0,85835.0,0.00117474]
[1742479528019,0.1165455,85836.0,85835.0,0.11772154]
[1742479528220,0.1165455,85836.0,85835.0,0.11672154]
[1742479528616,0.1165455,85836.0,85835.0,0.22822154]
[1742479528812,0.276412,85838.0,85835.0,0.22822154]
[1742479528813,0.10784,85838.0,85837.0,0.1165441]
[1742479529018,0.2243827,85838.0,85837.0,0.1165441]
[1742479529718,0.2243427,85838.0,85837.0,0.1165441]
[1742479529915,0.2243427,85838.0,85835.0,0.11167474]
[1742479529916,0.1165455,85836.0,85835.0,0.22822094]
[1742479530115,0.1165455,85836.0,85835.0,0.11167474]
[1742479530422,0.4773455,85836.0,85835.0,0.11167474]
[1742479530723,0.5793455,85836.0,85835.0,0.00017474]
[1742479531223,0.6793455,85836.0,85835.0,0.00017474]
[1742479531418,0.6893455,85836.0,85835.0,0.00017474]
[1742479531617,0.6893455,85836.0,85835.0,0.11672154]
[1742479532518,0.6893455,85836.0,85835.0,0.22042154]
[1742479532519,0.3285455,85836.0,85835.0,0.22042154]
[1742479532723,0.33796544,85836.0,85835.0,0.22042154]
[1742479535921,0.33796544,85836.0,85835.0,0.00017474]
[1742479536128,0.2331475,85818.0,85817.0,0.1165631]
[1742479536628,0.1165722,85818.0,85817.0,0.174846]
[1742479536930,0.00941994,85818.0,85817.0,0.174846]
[1742479537127,0.00941994,85818.0,85817.0,0.535646]
[1742479537520,0.12598984,85818.0,85817.0,0.535646]
[1742479537732,0.12598984,85818.0,85817.0,0.282946]
[1742479537930,0.1165713,85817.0,85816.0,0.1056]
[1742479538125,0.2218713,85817.0,85816.0,0.1056]
[1742479538436,0.33234079,85817.0,85816.0,0.1056]
[1742479538931,0.34176073,85817.0,85816.0,0.1056]
[1742479539327,0.27390554,85817.0,85810.0,0.1081]
[1742479539524,0.1748658,85815.0,85814.0,0.1748595]
[1742479540016,0.0582877,85815.0,85814.0,0.1748595]
[1742479540222,0.06770764,85815.0,85814.0,0.1748595]
[1742479540433,0.16860764,85815.0,85814.0,0.1748595]
[1742479540632,0.22061994,85815.0,85814.0,0.1748595]
[1742479540834,0.10431155,85829.0,85825.0,0.1165604]
[1742479541522,0.0996,85828.0,85825.0,0.2511604]
[1742479541837,0.10431155,85829.0,85828.0,0.1165563]
[1742479542330,0.10431155,85829.0,85828.0,0.3243563]
[1742479542726,0.10431155,85829.0,85828.0,0.33637719]
[1742479543332,0.00017474,85837.0,85836.0,0.1165455]
[1742479543633,4e-05,85854.0,85844.0,0.1165346]
[1742479543933,4e-05,85854.0,85844.0,0.6116146]
[1742479543934,0.32543792,85845.0,85844.0,0.6116146]
[1742479544623,0.20890472,85845.0,85844.0,0.6116146]
[1742479544825,0.32543792,85845.0,85844.0,0.6116146]
[1742479545025,0.004,85845.0,85844.0,0.6116146]
[1742479545227,0.00017474,85853.0,85852.0,0.1165237]
[1742479545438,0.36084,85864.0,85861.0,0.0582551]
[1742479545637,0.5356045,85864.0,85863.0,0.1165088]
[1742479546529,4e-05,85864.0,85863.0,0.2277088]
[1742479546721,4e-05,85869.0,85868.0,0.116502]
[1742479547134,0.17000015,85871.0,85870.0,0.1164993]
[1742479547432,0.17965529,85871.0,85870.0,0.4772993]
[1742479547938,0.17965529,85871.0,85870.0,0.7015993]
[1742479548122,0.17965529,85871.0,85870.0,0.9315993]
[1742479548328,4e-05,85874.0,85873.0,0.1164952]
[1742479548523,4e-05,85874.0,85873.0,0.4900952]
[1742479548728,0.24288733,85882.0,85880.0,0.1164857]
[1742479549032,4e-05,85893.0,85886.0,0.1164776]
[1742479549233,4e-05,85893.0,85886.0,0.7372776]
[1742479549533,4e-05,85893.0,85892.0,0.1164695]
[1742479549737,0.0001747,85895.0,85894.0,0.1164668]
[1742479549936,0.0001747,85895.0,85894.0,0.2498668]
[1742479551544,0.24371773,85903.0,85902.0,0.1164559]
[1742479551833,0.36017233,85903.0,85902.0,0.6102959]
[1742479552039,0.24371773,85903.0,85902.0,0.6102959]
[1742479552629,0.24371773,85903.0,85902.0,0.6160959]
[1742479552826,4e-05,85909.0,85908.0,0.1164478]
[1742479553133,0.00961922,85909.0,85908.0,0.1164478]
[1742479553731,2e-08,85909.0,85908.0,0.5829478]
[1742479553929,2e-08,85909.0,85908.0,0.5887478]
[1742479554236,2e-08,85912.0,85911.0,0.1164437]
[1742479554536,2e-08,85912.0,85911.0,0.5194437]
[1742479554737,0.1164096,85937.0,85936.0,0.0582044]
[1742479554941,0.1065,85939.0,85938.0,0.1164071]
[1742479555233,0.2229067,85939.0,85938.0,0.1164071]
[1742479555439,0.1065,85939.0,85938.0,0.1164071]
[1742479555839,0.1746221,85934.0,85933.0,0.1164136]
[1742479556034,0.1164139,85933.0,85932.0,0.13268]
[1742479556235,0.1164139,85933.0,85932.0,0.1164153]
[1742479556545,0.4189964,85949.0,85946.0,0.0581976]
[1742479556734,0.4189964,85949.0,85945.0,0.1745933]
[1742479556735,0.1164363,85946.0,85945.0,0.1745933]
[1742479558540,0.1164363,85946.0,85945.0,0.0581987]
[1742479559232,0.1214363,85946.0,85945.0,0.0591987]
[1742479559644,0.00504,85946.0,85945.0,0.0591987]
[1742479559830,0.005,85946.0,85945.0,0.0591987]
[1742479560333,0.01452875,85946.0,85945.0,0.0591987]
[1742479561433,0.0145389,85946.0,85945.0,0.1911187]
[1742479561840,0.005,85946.0,85945.0,0.1911187]
[1742479562543,0.12191928,85946.0,85945.0,0.0591987]
[1742479562845,0.23831558,85946.0,85945.0,0.0591987]
[1742479563142,0.22851928,85946.0,85945.0,0.0591987]
[1742479563342,0.22851904,85946.0,85945.0,0.0591987]
[1742479563533,0.34491534,85946.0,85945.0,0.0591987]
[1742479563935,0.1164153,85932.0,85924.0,0.01182025]
[1742479564135,0.1164153,85932.0,85931.0,0.2480566]
[1742479564345,0.12597889,85932.0,85931.0,0.2480566]
[1742479564735,0.23327889,85932.0,85931.0,0.2480566]
[1742479565037,0.23327889,85932.0,85931.0,0.1164166]
[1742479565248,0.23927889,85932.0,85931.0,0.1164166]
[1742479565437,0.13197889,85932.0,85931.0,0.12504936]
[1742479565629,0.12126359,85932.0,85930.0,0.3608]
[1742479565833,0.1164193,85929.0,85928.0,0.00017463]
[1742479566042,0.12585795,85929.0,85928.0,0.11659533]
[1742479566634,0.1117,85932.0,85930.0,0.1164166]
[1742479566830,0.1117,85932.0,85931.0,0.1164166]
[1742479567236,0.23758819,85932.0,85931.0,0.1164166]
[1742479567433,0.1164193,85929.0,85928.0,0.00017463]
[1742479567639,0.1164274,85923.0,85922.0,0.1312]
[1742479567838,0.00947289,85923.0,85922.0,0.1164288]
[1742479568047,0.1057,85928.0,85927.0,0.116422]
[1742479568246,0.1057,85928.0,85927.0,0.247662]
[1742479568545,0.004,85932.0,85931.0,0.1164166]
[1742479569141,4e-05,85940.0,85934.0,0.1164125]
[1742479569351,4e-05,85940.0,85939.0,0.1164058]
[1742479569552,0.1099,85945.0,85944.0,0.116399]
[1742479569747,0.14053359,85980.0,85944.0,0.116399]
[1742479569748,0.1134,85954.0,85953.0,0.1163868]
[1742479569950,0.1134,85954.0,85953.0,0.2478668]
[1742479571040,0.2297855,85954.0,85953.0,0.2478668]
[1742479571238,0.1228772,85954.0,85953.0,0.2478668]
[1742479571439,0.1228772,85954.0,85953.0,0.6086668]
[1742479571635,0.01899823,85954.0,85953.0,0.4771868]
[1742479571847,0.01899823,85954.0,85953.0,0.2477468]
[1742479572046,0.02399823,85954.0,85953.0,0.2477468]
[1742479572243,0.13090653,85954.0,85953.0,0.2477068]
[1742479572545,0.2242855,85954.0,85953.0,0.2477068]
[1742479573143,0.2202855,85954.0,85953.0,0.1163868]
[1742479574141,0.2202855,85954.0,85940.0,0.1638015]
[1742479574142,0.1163963,85946.0,85940.0,0.1638015]
[1742479574343,0.4771963,85946.0,85945.0,0.11657213]
[1742479574738,0.4771963,85946.0,85945.0,0.00017453]
[1742479574951,0.1164166,85931.0,85930.0,0.1164167]
[1742479575150,0.1164166,85931.0,85930.0,0.2475767]
[1742479575350,0.4772166,85931.0,85930.0,0.13116]
[1742479575555,0.4772166,85931.0,85930.0,0.247578]
[1742479575744,0.5853166,85931.0,85930.0,0.247578]
[1742479576143,0.5853166,85931.0,85930.0,0.116418]
[1742479576144,0.2245166,85931.0,85930.0,0.116418]
[1742479576343,0.1081,85931.0,85930.0,0.116418]
[1742479576544,0.1111,85931.0,85930.0,0.116418]
[1742479576941,0.05985501,85931.0,85930.0,0.116418]
[1742479577544,0.1037,85932.0,85931.0,0.1164166]
[1742479577748,0.2201153,85932.0,85931.0,0.3286166]
[1742479578660,0.1107,85933.0,85932.0,0.1164153]
[1742479578847,4e-05,85934.0,85933.0,0.1164139]
[1742479579049,4e-05,85934.0,85933.0,0.3464139]
[1742479579255,4e-05,85934.0,85933.0,0.5545139]
[1742479579556,4e-05,85934.0,85933.0,2.1575139]
[1742479579758,0.00017453,85939.0,85938.0,0.1164071]
[1742479579955,0.00017453,85939.0,85938.0,0.4772071]
[1742479580158,4e-05,85955.0,85954.0,0.1163855]
[1742479580355,4e-05,85955.0,85954.0,0.2472255]
[1742479581554,4e-05,85955.0,85954.0,1.7472255]
[1742479581762,4e-05,85955.0,85954.0,1.75892174]
[1742479582057,4e-05,85955.0,85954.0,2.07472174]
[1742479582255,0.1067,85964.0,85963.0,0.1163733]
[1742479582462,0.4771534,85978.0,85977.0,0.1163543]
[1742479583045,0.1163557,85976.0,85975.0,0.0581778]
[1742479583254,0.116357,85975.0,85974.0,0.2470784]
[1742479583455,0.116357,85975.0,85974.0,0.1163584]
[1742479584350,0.1053,85975.0,85974.0,0.1163584]
[1742479584560,0.221657,85975.0,85974.0,0.1163584]
[1742479585264,0.223657,85975.0,85974.0,0.1163584]
[1742479586759,0.1073,85975.0,85974.0,0.1163584]
[1742479587159,0.118357,85975.0,85974.0,0.1163584]
[1742479587360,0.002,85975.0,85974.0,0.1163584]
[1742479588853,0.1075,85983.0,85972.0,0.0581799]
[1742479589063,0.1075,85983.0,85982.0,0.1163476]
[1742479589265,0.1075,85983.0,85982.0,0.2462276]
[1742479589960,0.1075,85983.0,85982.0,0.4597276]
[1742479590156,4e-05,85990.0,85983.0,0.1163462]
[1742479590356,0.105,86000.0,85999.0,0.1163246]
[1742479590567,0.105,86000.0,85999.0,0.5263246]
[1742479590880,0.105,86000.0,85999.0,0.2463246]
[1742479591063,0.105,86000.0,85999.0,1.7463246]
[1742479591266,0.12410805,86000.0,85999.0,0.35780379]
[1742479591567,0.12410805,86000.0,85999.0,0.50780379]
[1742479592068,0.12610805,86000.0,85999.0,0.50780379]
[1742479592257,0.12610805,86000.0,85999.0,0.60980379]
[1742479592560,0.12610805,86000.0,85999.0,0.35980379]
[1742479592963,0.12610805,86000.0,85999.0,0.62980379]
[1742479593767,0.01150117,86000.0,85999.0,0.77976379]
[1742479593967,0.01445663,86040.0,85999.0,0.77976379]
[1742479593968,0.4189354,86039.0,86028.0,0.1162853]
[1742479594265,0.1021,86036.0,86028.0,0.2461653]
[1742479594466,0.477084,86029.0,86028.0,0.2461653]
[1742479594769,0.477084,86029.0,86028.0,0.1162853]
[1742479594960,0.3608,86029.0,86028.0,0.1162853]
[1742479595161,0.3628,86029.0,86028.0,0.1162853]
[1742479595567,0.3628,86029.0,86028.0,0.2215853]
[1742479596082,0.002,86029.0,86028.0,0.2215853]
[1742479596464,0.002,86029.0,86028.0,0.8123853]
[1742479596664,0.002,86029.0,86028.0,0.9623853]
[1742479596866,0.002,86029.0,86028.0,0.8123853]
[1742479597060,0.002,86029.0,86028.0,0.9145853]
[1742479597268,4e-05,86034.0,86033.0,0.1162786]
[1742479597566,4e-05,86047.0,86033.0,0.1162786]
[1742479597567,4e-05,86047.0,86046.0,0.116261]
[1742479597766,0.1082,86053.0,86052.0,0.1162529]
[1742479598071,0.1082,86053.0,86052.0,0.3562529]
[1742479598568,0.3608,86064.0,86063.0,0.1162381]
[1742479598758,4e-05,86066.0,86065.0,0.1162354]
[1742479599372,0.01593032,86066.0,86065.0,0.3355354]
[1742479599671,0.20847997,86085.0,86078.0,0.1162178]
[1742479599870,0.1162102,86084.0,86078.0,0.4754978]
[1742479600168,0.1162102,86084.0,86074.0,0.84452]
[1742479600169,0.1162219,86075.0,86074.0,0.00104]
[1742479600377,0.1162219,86075.0,86074.0,0.12932]
[1742479600668,0.0581129,86073.0,86061.0,0.0581202]
[1742479600864,0.1162354,86065.0,86064.0,0.12924]
[1742479601059,0.1162354,86065.0,86064.0,0.1162367]
[1742479601259,0.0581202,86062.0,86059.0,0.0590816]
[1742479601462,0.1162448,86058.0,86047.0,0.37243668]
[1742479601667,0.1162583,86048.0,86047.0,0.48869638]
[1742479601858,0.1162568,86051.0,86050.0,0.0581265]
[1742479602063,0.1162568,86051.0,86050.0,0.1743767]
[1742479602879,0.1162568,86051.0,86050.0,0.0581265]
[1742479604373,0.1162516,86053.0,86052.0,0.1162529]
[1742479604570,0.1091,86053.0,86042.0,0.00113431]
[1742479604762,0.4836651,86043.0,86042.0,0.00017431]
[1742479604963,0.4770651,86043.0,86042.0,0.00017431]
[1742479605266,0.1162651,86043.0,86042.0,0.00017431]
[1742479605469,0.1162651,86043.0,86042.0,0.11644071]
[1742479605769,0.2253651,86043.0,86042.0,0.11644071]
[1742479605969,0.1091,86043.0,86042.0,0.11644071]
[1742479606159,0.1091,86043.0,86042.0,0.24500071]
[1742479606473,0.24147207,86043.0,86042.0,0.00017431]
[1742479606676,0.1162718,86038.0,86037.0,0.1162723]
[1742479606973,0.1744171,86035.0,86034.0,0.1162767]
[1742479607171,0.0581272,86052.0,86048.0,0.058129]
[1742479607367,0.116257,86050.0,86049.0,0.1162561]
[1742479607568,0.12570725,86050.0,86049.0,0.1162561]
[1742479607767,0.13528365,86050.0,86049.0,0.1162561]
[1742479607975,0.13528365,86050.0,86046.0,0.1162577]
[1742479607976,0.1743928,86047.0,86046.0,0.1162577]
[1742479608172,0.07715669,86047.0,86046.0,0.1162577]
[1742479608371,0.01902629,86047.0,86046.0,0.1162577]
[1742479608570,0.13528599,86047.0,86046.0,0.1162577]
[1742479609167,0.01902629,86047.0,86046.0,0.1162577]
[1742479609974,4e-05,86060.0,86046.0,1.22428]
[1742479610172,4e-05,86060.0,86059.0,1.9770435]
[1742479610479,4e-05,86060.0,86059.0,2.3552435]
[1742479610779,0.0581058,86083.0,86059.0,2.3552435]
[1742479610780,0.105,86100.0,86077.0,0.1162191]
[1742479611084,0.0581022,86088.0,86078.0,0.12812]
[1742479611281,0.477003,86089.0,86088.0,0.1162043]
[1742479612076,0.116203,86089.0,86088.0,0.116203]
[1742479612279,0.00017431,86095.0,86094.0,0.1161962]
[1742479612465,0.00017431,86095.0,86094.0,0.2440762]
[1742479612670,0.0580981,86094.0,86086.0,0.0581029]
[1742479612873,0.3608,86092.0,86091.0,0.1162003]
[1742479613078,0.00017431,86095.0,86094.0,0.1161962]
[1742479613280,0.11636921,86095.0,86094.0,0.1161962]
[1742479613580,0.0581041,86087.0,86086.0,0.1162043]
[1742479613783,0.1015,86094.0,86091.0,0.0580995]
[1742479614078,0.1045,86094.0,86093.0,0.1161976]
[1742479614475,0.1045,86094.0,86093.0,0.2437576]